bitfinex-derivatives/quotes_ETHF0:USTF0_20250524
["timestamp","ask_amount","ask_price","bid_price","bid_amount"]
[1748104415760,0.85926626,2550.8,2550.7,2.71131725]
[1748104415960,18.50026626,2550.8,2550.7,2.71131725]
[1748104417360,17.71649626,2550.8,2550.7,2.71131725]
[1748104417558,0.07549626,2550.8,2550.7,2.71131725]
[1748104417760,0.07549626,2550.8,2550.7,10.91911725]
[1748104418467,0.07549626,2550.8,2550.7,11.6768209]
[1748104420171,0.07549626,2550.8,2550.7,10.91911725]
[1748104422372,0.07549626,2550.8,2550.7,5.91911725]
[1748104422869,0.07549626,2550.8,2550.7,6.6768209]
[1748104423574,0.00392012,2551.2,2551.1,0.78368]
[1748104423767,17.64392012,2551.2,2551.1,0.78368]
[1748104424871,17.64392012,2551.2,2551.1,2.83078]
[1748104425073,17.64392012,2551.2,2551.1,3.40021709]
[1748104425972,18.42756012,2551.2,2551.1,3.40021709]
[1748104426573,17.64392012,2551.2,2551.1,3.40021709]
[1748104428373,17.64392012,2551.2,2551.1,2.83078]
[1748104430074,0.07941638,2551.2,2551.1,2.83078]
[1748104431978,0.07941638,2551.2,2551.1,3.39912774]
[1748104438780,0.07941638,2551.2,2551.1,6.60692774]
[1748104442786,0.07941638,2551.2,2551.1,5.90962774]
[1748104442981,0.86305638,2551.2,2551.1,0.56834774]
[1748104445388,0.86305638,2551.2,2551.1,1.35202774]
[1748104445788,0.86305638,2551.2,2551.1,0.56834774]
[1748104446987,0.78368,2551.1,2551.0,0.78371]
[1748104447286,19.77168,2551.1,2551.0,0.78371]
[1748104447683,18.988,2551.1,2551.0,0.78371]
[1748104448391,0.07941638,2551.2,2551.1,0.78368]
[1748104448690,0.07941638,2551.2,2551.1,3.99148]
[1748104449086,0.07941638,2551.2,2551.1,5.38678]
[1748104449790,0.07941638,2551.2,2551.1,6.52405525]
[1748104450483,21.07404151,2551.7,2551.2,1.95905]
[1748104450484,2.32324151,2551.7,2551.2,1.95905]
[1748104450684,2.32324151,2551.7,2551.6,0.78352]
[1748104451295,3.68014151,2552.0,2551.6,1.3745]
[1748104451592,0.78343,2551.9,2551.7,1.46326]
[1748104451889,2.14033,2551.9,2551.8,1.3745]
[1748104452085,2.32324151,2552.0,2551.8,1.3745]
[1748104452279,2.32324151,2552.0,2551.9,0.78343]
[1748104452483,2.32324151,2552.0,2551.8,1.3745]
[1748104452484,3.10664151,2552.0,2551.8,2.15794]
[1748104452687,0.78343,2551.9,2551.8,1.3745]
[1748104453084,2.11953,2551.9,2551.8,1.3745]
[1748104453591,1.3361,2551.9,2551.8,1.3745]
[1748104453889,2.11953,2551.9,2551.8,1.3745]
[1748104454391,2.11953,2551.9,2551.8,1.94385204]
[1748104454888,0.6832,2552.1,2552.0,0.7834]
[1748104455195,3.99114,2552.2,2552.0,0.78337]
[1748104455493,3.2078,2552.2,2552.1,1.3181]
[1748104455791,2.32324151,2552.3,2552.2,0.78334]
[1748104455990,2.32324151,2552.3,2552.2,1.44684]
[1748104456187,2.32324151,2552.3,2552.2,2.12154]
[1748104456388,0.78328,2552.4,2552.2,2.12154]
[1748104456580,0.78328,2552.4,2552.3,1.3784]
[1748104457384,1.384,2552.5,2552.3,1.3784]
[1748104457589,2.16726,2552.5,2552.3,1.3784]
[1748104458394,2.16726,2552.5,2552.3,2.1617]
[1748104458594,1.384,2552.5,2552.0,0.00588016]
[1748104458894,1.384,2552.4,2552.0,0.00588016]
[1748104459195,0.78332,2552.3,2552.2,0.78333]
[1748104459495,0.6962,2552.3,2552.2,0.78333]
[1748104459996,1.47951,2552.3,2552.2,0.78333]
[1748104460292,2.0897,2552.3,2552.2,0.78333]
[1748104464594,0.78337,2552.1,2552.0,0.00588016]
[1748104465189,2.17987,2552.1,2552.0,0.00588016]
[1748104466097,2.17987,2552.1,2552.0,0.78928016]
[1748104466806,19.81187,2552.1,2552.0,0.78928016]
[1748104467098,19.0285,2552.1,2552.0,0.78928016]
[1748104467993,17.632,2552.1,2552.0,0.78928016]
[1748104468193,18.3311,2552.2,2552.1,0.78337]
[1748104468700,19.6251,2552.2,2552.1,0.78337]
[1748104468903,19.6251,2552.2,2552.1,2.15537]
[1748104470405,18.3272,2552.3,2552.2,0.78334]
[1748104470699,18.3272,2552.3,2552.2,2.15534]
[1748104472501,0.6962,2552.3,2552.2,2.15534]
[1748104472995,0.07549626,2552.5,2552.4,0.78328]
[1748104473398,0.07549626,2552.5,2552.3,1.44249]
[1748104473703,1.52684626,2552.5,2552.4,1.2982]
[1748104474295,0.74359626,2552.5,2552.1,3.2078]
[1748104474495,0.78329,2552.4,2552.3,0.78329]
[1748104474699,0.78329,2552.4,2552.3,2.16409]
[1748104475101,2.11609,2552.4,2552.3,2.16409]
[1748104475996,1.3328,2552.4,2552.3,2.16409]
[1748104476308,3.2078,2552.8,2552.7,0.78318]
[1748104476505,22.28638,2552.8,2552.7,0.78318]
[1748104477005,0.7832,2552.7,2552.6,0.7832]
[1748104477199,0.78324,2552.6,2552.5,0.78323]
[1748104477401,18.4142,2552.7,2552.6,0.78318]
[1748104477600,19.7639,2552.7,2552.6,0.78318]
[1748104478807,0.78327,2552.5,2552.4,0.78326]
[1748104479310,0.78328,2552.4,2552.3,2.07909]
[1748104479607,1.43718,2552.4,2552.3,2.07909]
[1748104480308,0.78331,2552.3,2552.2,1.49221]
[1748104480497,0.78331,2552.3,2552.2,1.49224]
[1748104480498,2.13731,2552.3,2552.2,1.49224]
[1748104480702,2.1116,2552.4,2552.3,0.78331]
[1748104481008,2.1116,2552.4,2552.3,1.361]
[1748104481502,2.1116,2552.4,2552.3,2.14431]
[1748104481806,2.1116,2552.4,2552.3,1.361]
[1748104482809,2.1116,2552.4,2552.3,2.14431]
[1748104483415,2.1116,2552.4,2552.3,2.71348823]
[1748104483607,1.4372,2552.4,2552.3,2.71348823]
[1748104485609,2.96614151,2552.7,2552.5,0.78322]
[1748104485915,19.05782,2552.6,2552.5,0.78325]
[1748104486616,0.78325,2552.5,2552.4,1.3061]
[1748104486815,2.10965,2552.5,2552.4,1.3061]
[1748104487518,0.78325,2552.5,2552.4,1.3061]
[1748104487708,0.78325,2552.5,2552.4,1.87527823]
[1748104488617,2.10965,2552.5,2552.4,1.87527823]
[1748104489117,27.94645,2552.5,2552.4,0.56917823]
[1748104489619,22.94645,2552.5,2552.4,0.56917823]
[1748104489813,5.31745,2552.5,2552.4,0.56917823]
[1748104490014,0.07549626,2552.5,2552.4,1.35245823]
[1748104490418,1.35569626,2552.5,2552.4,1.35245823]
[1748104490721,2.13894626,2552.5,2552.4,1.35245823]
[1748104490916,2.13894626,2552.5,2552.4,2.64515823]
[1748104491114,2.13894626,2552.5,2552.4,2.07598]
[1748104491721,1.35569626,2552.5,2552.4,2.07598]
[1748104494120,1.35569626,2552.5,2552.4,2.64502238]
[1748104494617,0.07549626,2552.5,2552.4,2.64502238]
[1748104497022,0.07549626,2552.5,2552.4,5.85282238]
[1748104498524,0.07549626,2552.5,2552.4,6.42050015]
[1748104500631,0.07549626,2552.5,2552.4,3.21270015]
[1748104502521,0.85874626,2552.5,2552.4,1.13672015]
[1748104502721,1.55364626,2552.5,2552.4,0.56904238]
[1748104502921,2.91414626,2552.5,2552.4,0.56904238]
[1748104503322,2.91414626,2552.5,2552.4,1.35232238]
[1748104503830,7.91414626,2552.5,2552.4,0.56904238]
[1748104504421,9.45413777,2552.5,2552.2,0.78332]
[1748104504721,0.78331,2552.3,2552.2,0.78332]
[1748104505121,2.15161,2552.3,2552.2,0.78332]
[1748104505322,18.9963,2552.3,2552.0,3.99706016]
[1748104505525,0.78337,2552.1,2552.0,3.99706016]
[1748104505724,0.78337,2552.1,2552.0,0.00588016]
[1748104505923,5.78337,2552.1,2552.0,0.00588016]
[1748104506126,0.78337,2552.1,2552.0,0.00588016]
[1748104506334,33.94537,2552.1,2552.0,0.00588016]
[1748104506523,1.3683,2552.2,2552.1,0.78337]
[1748104506723,18.9973,2552.2,2552.1,0.78337]
[1748104507024,19.78064,2552.2,2552.1,2.20377]
[1748104507226,0.78337,2552.1,2552.0,0.00588016]
[1748104507428,2.15167,2552.1,2552.0,0.00588016]
[1748104507929,1.3683,2552.1,2552.0,0.78928016]
[1748104508932,1.3683,2552.1,2552.0,2.19258016]
[1748104509732,3.2078,2552.3,2552.2,0.78334]
[1748104509923,2.96524151,2552.4,2552.3,0.78331]
[1748104510623,3.74852151,2552.4,2552.3,0.78331]
[1748104510820,1.42528,2552.4,2552.3,1.35194638]
[1748104511530,1.42528,2552.4,2552.3,0.56863638]
[1748104511730,2.72148,2552.4,2552.3,0.56863638]
[1748104512734,2.72148,2552.4,2552.2,2.18662]
[1748104513231,2.72148,2552.4,2552.3,0.78331]
[1748104513428,1.42528,2552.4,2552.3,2.83841]
[1748104513635,3.28329626,2552.5,2552.4,0.78328]
[1748104513839,3.28329626,2552.5,2552.4,2.79508]
[1748104514332,0.07549626,2552.5,2552.4,2.79508]
[1748104515034,0.07549626,2552.5,2552.4,6.00288]
[1748104515235,0.07549626,2552.5,2552.4,6.57138227]
[1748104516936,0.07549626,2552.5,2552.4,2.58030227]
[1748104517141,2.85374626,2552.5,2552.4,2.58030227]
[1748104517940,2.85374626,2552.5,2552.4,2.0118]
[1748104518638,2.85374626,2552.5,2552.4,2.79508]
[1748104519640,0.77479626,2552.5,2552.4,2.79508]
[1748104520141,1.55804626,2552.5,2552.4,2.79508]
[1748104520338,0.78337,2552.1,2552.0,0.57355793]
[1748104520535,5.165,2552.4,2552.0,0.57355793]
[1748104520735,0.78334,2552.2,2552.1,2.16825]
[1748104520936,0.78333,2552.3,2552.2,0.78333]
[1748104521240,2.09961,2552.3,2552.2,0.78333]
[1748104522544,19.05319,2552.4,2552.3,0.78331]
[1748104522843,0.6409,2552.4,2552.3,0.78331]
[1748104523047,0.07549626,2552.5,2552.4,0.78328]
[1748104523845,0.07549626,2552.5,2552.4,2.19918]
[1748104524543,3.2078,2552.8,2552.7,0.78318]
[1748104525540,3.2078,2552.8,2552.7,2.7676422]
[1748104527047,0.78314,2552.9,2552.8,0.78315]
[1748104527251,1.4675,2553.0,2552.8,2.76485]
[1748104527646,0.78312,2552.9,2552.8,1.44115]
[1748104527945,0.78312,2552.9,2552.8,0.658]
[1748104528857,2.74942,2553.0,2552.8,1.44115]
[1748104529051,2.74942,2553.0,2552.8,1.44113]
[1748104529653,0.78312,2552.9,2552.8,1.44113]
[1748104531953,0.78312,2552.9,2552.8,0.658]
[1748104532452,2.13482,2552.9,2552.8,0.658]
[1748104532654,2.13482,2552.9,2552.8,1.44115]
[1748104534555,2.13482,2552.9,2552.8,0.658]
[1748104534754,1.42719626,2552.9,2552.3,0.56767777]
[1748104534950,0.78325,2552.5,2552.4,2.14768]
[1748104535150,0.78325,2552.5,2552.4,1.3644]
[1748104535458,0.78324,2552.6,2552.5,0.78324]
[1748104535751,0.7832,2552.7,2552.6,0.7832]
[1748104536053,0.78324,2552.6,2552.5,0.78325]
[1748104536254,1.45154,2552.6,2552.5,0.78325]
[1748104537157,0.78325,2552.5,2552.4,2.14765]
[1748104538459,0.78325,2552.5,2552.4,1.3644]
[1748104538659,2.13235,2552.5,2552.4,1.3644]
[1748104538859,2.13235,2552.5,2552.4,2.14768]
[1748104539955,0.6683,2552.6,2552.4,1.93321601]
[1748104540156,0.07549626,2552.9,2552.4,3.89134601]
[1748104540355,0.07549626,2552.9,2552.8,0.78315]
[1748104540659,0.78317,2552.8,2552.7,0.78317]
[1748104541160,0.78319,2552.7,2552.6,0.78319]
[1748104542055,0.78325,2552.5,2552.4,2.71532777]
[1748104542255,0.78324,2552.6,2552.5,0.78324]
[1748104543058,0.78325,2552.5,2552.4,2.14765]
[1748104543561,0.78325,2552.5,2552.4,2.71656641]
[1748104544062,0.78323,2552.6,2552.5,0.78324]
[1748104544361,0.78325,2552.5,2552.4,1.93331641]
[1748104544556,0.78325,2552.5,2552.4,0.56891641]
[1748104545058,0.78325,2552.5,2552.4,1.94721641]
[1748104546160,2.15065,2552.5,2552.4,1.94721641]
[1748104546361,2.15065,2552.5,2552.4,2.73049641]
[1748104547463,0.78325,2552.5,2552.4,2.73049641]
[1748104548364,0.78325,2552.5,2552.4,2.40168077]
[1748104548664,0.78325,2552.5,2552.4,1.61840077]
[1748104550167,0.78325,2552.5,2552.4,2.40168077]
[1748104550373,2.32324151,2552.9,2552.4,1.61840077]
[1748104550569,1.42766,2552.8,2552.7,0.78318]
[1748104550765,0.78318,2552.7,2552.6,1.43869]
[1748104550966,0.78318,2552.7,2552.6,2.13919]
[1748104552476,0.78318,2552.7,2552.6,1.356]
[1748104552864,0.78318,2552.7,2552.6,3.47332]
[1748104553669,0.78318,2552.7,2552.6,2.6901]
[1748104556270,0.78318,2552.7,2552.6,3.47331]
[1748104557970,0.78318,2552.8,2552.7,0.78318]
[1748104558167,20.73338151,2552.9,2552.8,0.78315]
[1748104558365,0.78315,2552.8,2552.7,2.09096]
[1748104560674,0.78315,2552.8,2552.7,1.3078]
[1748104561068,0.78315,2552.8,2552.7,1.87666271]
[1748104562068,0.78315,2552.8,2552.7,1.3078]
[1748104563474,2.17905,2552.8,2552.7,2.09098]
[1748104563779,2.32324151,2552.9,2552.8,0.78315]
[1748104563963,6.21594151,2553.0,2552.9,0.78312]
[1748104564372,6.99903151,2553.0,2552.9,0.78312]
[1748104565477,0.78312,2552.9,2552.8,2.14594]
[1748104565679,0.78312,2552.9,2552.8,1.3628]
[1748104565869,4.6758,2553.0,2552.9,0.78312]
[1748104566775,4.6758,2553.0,2552.9,1.35196917]
[1748104566978,4.6758,2553.0,2552.9,0.56884917]
[1748104567273,5.9615,2553.0,2552.9,0.56884917]
[1748104567674,5.9615,2553.0,2552.9,1.95724917]
[1748104568574,2.7537,2553.0,2552.9,1.95724917]
[1748104569476,2.7537,2553.0,2552.9,0.56884917]
[1748104569677,25.7064,2553.0,2552.6,0.56767777]
[1748104569870,3.99098,2552.7,2552.6,0.56767777]
[1748104570674,5.95698,2552.7,2552.6,0.56767777]
[1748104571480,0.78328,2552.4,2552.3,2.0283]
[1748104571777,18.40928,2552.4,2552.3,2.0283]
[1748104573371,18.40928,2552.4,2552.3,1.3033]
[1748104575280,0.78328,2552.4,2552.3,1.3033]
[1748104575586,18.41028,2552.4,2552.3,1.3033]
[1748104575881,0.78333,2552.3,2552.2,0.78333]
[1748104576275,0.7833,2552.4,2552.3,0.7833]
[1748104576474,0.6845,2552.6,2552.5,0.78325]
[1748104576679,18.3115,2552.6,2552.5,0.78325]
[1748104576974,19.09472,2552.6,2552.5,0.78325]
[1748104577780,18.3115,2552.6,2552.5,0.78325]
[1748104578079,18.3115,2552.6,2552.3,0.56767777]
[1748104578387,0.78328,2552.4,2552.3,0.56767777]
[1748104579081,3.99108,2552.4,2552.3,0.56767777]
[1748104579280,5.36748,2552.4,2552.3,0.56767777]
[1748104579784,4.5842,2552.4,2552.0,0.78928016]
[1748104580080,2.0338,2552.3,2552.0,0.78928016]
[1748104580284,0.78337,2552.1,2552.0,1.38938016]
[1748104581072,2.11327,2552.1,2552.0,1.38938016]
[1748104581272,5.32107,2552.1,2552.0,1.38938016]
[1748104581881,5.32107,2552.1,2552.0,0.00588016]
[1748104582981,25.85107,2552.1,2552.0,0.00588016]
[1748104585386,20.85107,2552.1,2552.0,0.00588016]
[1748104587084,5.32107,2552.1,2552.0,0.00588016]
[1748104587282,3.2078,2552.1,2552.0,0.78928016]
[1748104587587,20.8388,2552.1,2552.0,0.78928016]
[1748104587777,21.62217,2552.1,2552.0,0.00588016]
[1748104587978,21.62217,2552.1,2552.0,2.05188016]
[1748104588178,21.62217,2552.1,2552.0,2.74678016]
[1748104590782,22.99947,2552.1,2552.0,0.00588016]
[1748104594480,22.99947,2552.1,2552.0,0.67848016]
[1748104594681,23.07496626,2552.1,2552.0,0.67848016]
[1748104596793,22.99947,2552.1,2552.0,0.00588016]
[1748104597693,23.07496626,2552.1,2552.0,0.00588016]
[1748104599394,28.07496626,2552.1,2552.0,0.00588016]
[1748104599587,0.78352,2551.6,2551.5,1.3936]
[1748104600392,2.14802,2551.6,2551.5,1.3936]
[1748104603695,1.3645,2551.6,2551.5,1.3936]
[1748104603900,3.2078,2551.8,2551.7,0.78349]
[1748104604196,2.32324151,2551.9,2551.8,0.78346]
[1748104604493,17.633,2552.0,2551.5,1.3936]
[1748104604690,0.78349,2551.7,2551.6,0.7835]
[1748104605191,0.78352,2551.6,2551.5,2.17714]
[1748104606691,0.78352,2551.6,2551.5,2.74417351]
[1748104607399,0.78352,2551.6,2551.5,1.96063351]
[1748104608198,0.78352,2551.6,2551.5,2.74418351]
[1748104608698,0.78352,2551.6,2551.5,1.96063351]
[1748104610903,0.85901626,2551.6,2551.5,1.96063351]
[1748104611905,0.85901626,2551.6,2551.5,2.74418351]
[1748104612992,0.78352,2551.6,2551.5,2.74418351]
[1748104613192,0.78352,2551.6,2551.5,1.96063351]
[1748104613897,0.78352,2551.6,2551.5,2.74418351]
[1748104614300,3.99127,2551.8,2551.7,0.78349]
[1748104614502,3.2078,2551.8,2551.7,0.78349]
[1748104614900,3.2078,2551.8,2551.7,2.16729]
[1748104615101,0.78346,2551.8,2551.7,2.16729]
[1748104615704,2.32324151,2552.0,2551.7,1.3838]
[1748104615908,20.74066151,2552.0,2551.9,0.78343]
[1748104616102,0.78343,2551.9,2551.8,1.3771]
[1748104618199,2.09143,2551.9,2551.8,1.3771]
[1748104619207,0.78343,2551.9,2551.8,1.94495907]
[1748104619508,0.78343,2551.9,2551.8,2.72841907]
[1748104620199,0.78343,2551.9,2551.8,1.94495907]
[1748104621506,0.78343,2551.9,2551.8,2.72841907]
[1748104622510,0.78343,2551.9,2551.8,1.94495907]
[1748104624008,2.10363,2551.9,2551.8,1.94495907]
[1748104624809,0.78343,2551.9,2551.8,1.94495907]
[1748104625004,0.78343,2551.9,2551.8,2.72841907]
[1748104625211,0.78342,2552.0,2551.9,0.78341]
[1748104625405,0.78342,2552.0,2551.9,2.06771]
[1748104625605,18.41642,2552.0,2551.9,2.06771]
[1748104627211,18.41642,2552.0,2551.9,1.2843]
[1748104627516,0.78342,2552.0,2551.9,1.2843]
[1748104627813,18.41642,2552.0,2551.9,1.2843]
[1748104628014,6.22284151,2552.2,2551.9,1.2843]
[1748104628314,0.7834,2552.0,2551.9,2.0677]
[1748104628615,2.32324151,2552.2,2552.1,0.78337]
[1748104629018,3.10663004,2552.5,2552.4,0.78328]
[1748104629313,3.12722951,2552.9,2552.8,0.78315]
[1748104629615,3.12722951,2552.9,2552.4,19.51208]
[1748104629616,3.91034951,2552.9,2552.5,1.3702]
[1748104629802,0.78315,2552.8,2552.7,0.78316]
[1748104630007,0.78315,2552.8,2552.6,0.7025]
[1748104630204,0.78315,2552.8,2552.7,1.2939]
[1748104630716,3.91036951,2552.9,2552.7,2.07708]
[1748104630918,5.23106951,2552.9,2552.7,2.07708]
[1748104631216,5.23106951,2552.9,2552.8,0.78315]
[1748104631217,2.10384,2552.9,2552.8,0.78315]
[1748104631509,0.78315,2552.8,2552.7,1.21376595]
[1748104631711,2.10385,2552.8,2552.7,1.21376595]
[1748104632015,0.78318,2552.7,2552.6,1.9964]
[1748104632213,0.78318,2552.7,2552.6,1.2939]
[1748104632817,0.78318,2552.7,2552.6,2.07712]
[1748104633316,0.78318,2552.7,2552.6,1.2939]
[1748104633516,2.15858,2552.7,2552.6,1.2939]
[1748104633913,0.78322,2552.6,2552.5,0.00588016]
[1748104634110,2.84852,2552.6,2552.5,0.00588016]
[1748104636816,20.47752,2552.6,2552.5,0.00588016]
[1748104638818,23.68532,2552.6,2552.5,0.00588016]
[1748104639419,23.76081626,2552.6,2552.5,0.00588016]
[1748104639822,39.27781626,2552.6,2552.5,0.00588016]
[1748104641021,0.07549626,2552.6,2552.5,0.78913016]
[1748104641222,0.85870626,2552.6,2552.5,0.00588016]
[1748104641523,0.78321,2552.6,2552.5,0.00588016]
[1748104642121,0.78321,2552.6,2552.5,1.35028016]
[1748104642424,0.85870626,2552.6,2552.5,1.35028016]
[1748104643322,0.85870626,2552.6,2552.5,0.00588016]
[1748104643723,4.06650626,2552.6,2552.5,0.00588016]
[1748104644719,5.45750626,2552.6,2552.5,0.00588016]
[1748104645317,0.78337,2552.1,2552.0,3.77435201]
[1748104645722,0.78337,2552.1,2552.0,1.34995201]
[1748104645924,0.78337,2552.1,2552.0,1.2823]
[1748104646616,2.17437,2552.1,2552.0,1.2823]
[1748104648023,3.21368016,2552.3,2552.2,0.78334]
[1748104648620,3.21368016,2552.3,2552.2,1.36497964]
[1748104649222,0.00588016,2552.3,2552.2,1.36497964]
[1748104649422,0.00588016,2552.3,2552.2,2.70497964]
[1748104650524,0.07549626,2552.6,2552.5,0.78325]
[1748104652020,0.07549626,2552.6,2552.5,1.36488964]
[1748104652831,0.07549626,2552.6,2552.5,2.65608964]
[1748104655931,0.07549626,2552.6,2552.5,3.22264165]
[1748104660630,0.07549626,2552.6,2552.5,2.65608964]
[1748104662333,0.6654,2553.1,2553.0,0.78309]
[1748104663134,3.11591735,2553.7,2553.1,0.78306]
[1748104663329,3.81201735,2553.7,2553.6,0.78291]
[1748104663530,0.6961,2553.7,2553.6,0.78291]
[1748104663838,3.11591735,2553.8,2553.7,0.78288]
[1748104664535,3.11591735,2553.8,2553.7,2.12598]
[1748104665240,0.78278,2554.1,2553.7,1.92373676]
[1748104665432,0.78279,2554.0,2553.8,2.12595]
[1748104665637,0.78281,2554.0,2553.8,2.82113]
[1748104665839,0.78278,2554.1,2553.8,2.82113]
[1748104666033,2.10178,2554.1,2553.8,2.82113]
[1748104666234,0.78279,2554.0,2553.8,2.82113]
[1748104666636,0.7828,2554.0,2553.8,2.82113]
[1748104666835,1.319,2554.1,2553.8,2.0383]
[1748104666836,0.78282,2553.9,2553.8,2.0383]
[1748104667135,1.319,2554.1,2553.8,2.82115]
[1748104667435,0.7828,2554.0,2553.8,2.82115]
[1748104668345,0.78282,2553.9,2553.8,2.0383]
[1748104668642,0.78281,2554.0,2553.8,2.82115]
[1748104669442,1.378,2553.9,2553.8,2.0383]
[1748104669738,1.378,2553.9,2553.8,2.82115]
[1748104670238,1.378,2553.9,2553.8,2.12595]
[1748104670538,2.16082,2553.9,2553.8,2.12595]
[1748104670737,0.78285,2553.8,2553.6,3.2078]
[1748104671042,0.78288,2553.7,2553.6,3.2078]
[1748104671538,2.16088,2553.7,2553.6,3.2078]
[1748104673543,2.16088,2553.7,2553.6,3.99071]
[1748104673730,2.16088,2553.7,2553.6,3.2078]
[1748104674039,2.16088,2553.7,2553.6,3.99071]
[1748104674235,2.16088,2553.7,2553.6,3.2078]
[1748104674635,2.16088,2553.7,2553.6,3.99071]
[1748104675241,1.378,2553.7,2553.6,3.99071]
[1748104675444,18.999,2553.7,2553.6,3.99071]
[1748104676341,1.378,2553.7,2553.6,3.99071]
[1748104677644,2.16088,2553.7,2553.6,3.99071]
[1748104678448,2.16088,2553.7,2553.6,3.2078]
[1748104679746,2.16088,2553.7,2553.6,0.78291]
[1748104680640,1.378,2553.7,2553.6,0.78291]
[1748104680846,0.6566,2553.8,2553.7,0.78288]
[1748104682647,0.78288,2553.7,2553.4,3.2078]
[1748104682848,0.78292,2553.6,2553.5,0.78293]
[1748104683150,0.783,2553.3,2553.2,0.56706191]
[1748104683449,21.6108,2553.3,2553.2,0.56706191]
[1748104683842,6.719,2553.3,2553.2,0.56706191]
[1748104684146,24.339,2553.3,2553.2,0.56706191]
[1748104684451,0.78303,2553.2,2553.1,0.00588016]
[1748104684646,2.18653,2553.2,2553.1,0.00588016]
[1748104687056,0.78315,2552.8,2552.7,3.2078]
[1748104687256,3.36115,2553.2,2552.7,3.99099]
[1748104687458,3.36115,2553.2,2552.8,0.78315]
[1748104687655,0.78312,2552.9,2552.8,0.78315]
[1748104687855,0.78315,2552.8,2552.7,3.99097]
[1748104689358,0.78315,2552.8,2552.7,5.33547]
[1748104689958,0.78315,2552.8,2552.7,4.5523]
[1748104690153,2.79555,2552.8,2552.7,4.5523]
[1748104690348,2.79555,2552.8,2552.7,2.12769]
[1748104690550,2.79555,2552.8,2552.7,1.3445]
[1748104690755,0.78319,2552.7,2552.6,0.00588016]
[1748104691057,2.15409,2552.7,2552.6,0.00588016]
[1748104692355,0.78319,2552.7,2552.6,0.00588016]
[1748104692560,22.98489,2552.7,2552.6,0.00588016]
[1748104693258,5.36189,2552.7,2552.6,0.00588016]
[1748104693556,19.77709,2552.7,2552.6,0.00588016]
[1748104695168,19.77709,2552.7,2552.6,1.35188016]
[1748104695769,18.40819,2552.7,2552.6,1.35188016]
[1748104695968,18.40819,2552.7,2552.6,2.01578016]
[1748104696170,21.61599,2552.7,2552.6,0.00588016]
[1748104696364,22.90739,2552.7,2552.6,0.00588016]
[1748104697074,5.28239,2552.7,2552.6,0.00588016]
[1748104697364,22.90739,2552.7,2552.6,0.00588016]
[1748104698666,5.28239,2552.7,2552.6,0.00588016]
[1748104698864,22.90839,2552.7,2552.6,0.00588016]
[1748104699479,15.505,2552.8,2552.6,0.00588016]
[1748104699665,3.2078,2553.0,2552.9,0.78312]
[1748104699861,0.00588016,2553.1,2553.0,0.78309]
[1748104700869,0.00588016,2553.1,2552.8,1.3229]
[1748104701171,0.78312,2552.9,2552.8,1.3229]
[1748104702972,18.40912,2552.9,2552.8,1.3229]
[1748104704873,19.74172,2552.9,2552.8,1.3229]
[1748104706075,18.40912,2552.9,2552.8,1.3229]
[1748104708677,3.21368016,2553.1,2552.9,0.78312]
[1748104708979,18.41497016,2553.1,2553.0,1.408]
[1748104709773,0.78315,2552.8,2552.7,1.3727]
[1748104710782,0.78315,2552.8,2552.7,1.95417863]
[1748104710983,0.78315,2552.8,2552.7,3.36217863]
[1748104711281,1.43254,2552.9,2552.7,3.36217863]
[1748104711478,1.43254,2552.9,2552.8,1.408]
[1748104712080,1.43254,2552.9,2552.8,1.98947863]
[1748104713175,1.43254,2552.9,2552.8,2.77262863]
[1748104713877,0.78311,2553.0,2552.9,0.78312]
[1748104714076,0.78311,2553.0,2552.9,1.3076]
[1748104714276,0.78311,2553.0,2552.9,2.09072]
[1748104714781,0.78311,2553.0,2552.9,2.67219863]
[1748104715775,0.78311,2553.0,2552.9,1.88907863]
[1748104716388,0.78311,2553.0,2552.9,2.67219863]
[1748104716679,3.87898016,2553.1,2552.9,2.67219863]
[1748104716885,3.21368016,2553.1,2553.0,2.13169]
[1748104717083,0.78894016,2553.1,2553.0,2.13169]
[1748104717285,0.00588016,2553.1,2553.0,2.13169]
[1748104718185,0.00588016,2553.1,2553.0,2.71316863]
[1748104718777,0.78894016,2553.1,2553.0,1.93007863]
[1748104718982,1.46604016,2553.1,2553.0,0.58147863]
[1748104719279,4.67384016,2553.1,2553.0,0.58147863]
[1748104719683,3.89078016,2553.1,2552.8,1.2896]
[1748104719884,0.78312,2552.9,2552.8,1.2896]
[1748104720788,0.85861626,2552.9,2552.8,1.2896]
[1748104721286,0.85861626,2552.9,2552.8,2.07275]
[1748104721589,0.85861626,2552.9,2552.8,2.65508481]
[1748104723878,0.85861626,2552.9,2552.8,1.87193481]
[1748104724083,0.85861626,2552.9,2552.8,2.65508481]
[1748104724587,0.85861626,2552.9,2552.8,1.87193481]
[1748104730891,0.07549626,2552.9,2552.8,2.65508481]
[1748104732383,0.07549626,2552.9,2552.8,23.15808481]
[1748104735591,3.11591735,2553.4,2553.3,0.783]
[1748104736094,3.11591735,2553.4,2553.2,15.502]
[1748104736293,3.11591735,2553.4,2553.3,2.2014]
[1748104736989,0.78295,2553.5,2553.3,3.35079672]
[1748104737190,0.78295,2553.5,2553.4,2.20137]
[1748104737494,0.78293,2553.6,2553.4,2.20137]
[1748104737695,0.78293,2553.6,2553.5,1.4184]
[1748104739597,0.78293,2553.6,2553.5,2.00073481]
[1748104740898,0.78293,2553.6,2553.5,1.4184]
[1748104742303,0.78293,2553.6,2553.5,2.20134]
[1748104743906,1.3223,2553.7,2553.1,5.11746191]
[1748104744206,1.3223,2553.7,2553.3,0.783]
[1748104744207,0.78299,2553.4,2553.3,0.783]
[1748104745406,0.07549626,2553.6,2553.5,0.78294]
[1748104745803,0.85840626,2553.6,2553.5,0.78294]
[1748104749105,0.78296,2553.5,2553.4,0.78296]
[1748104750505,0.78297,2553.4,2553.3,2.10758]
[1748104750706,0.78296,2553.5,2553.4,0.78296]
[1748104751008,0.78296,2553.5,2553.4,2.11136]
[1748104751409,0.78296,2553.5,2553.4,1.3284]